bitfinex/quotes_SOLUSD_20251106
["timestamp","ask_amount","ask_price","bid_price","bid_amount"]
[1762448827719,20.592,156.05,155.96,50.0]
[1762448827720,20.592,156.0,155.99,50.0]
[1762448828038,28.66959302,156.0,155.96,7.78]
[1762448828259,28.66959302,155.97,155.96,7.78]
[1762448828421,28.66959302,155.97,155.89,58.07759302]
[1762448828422,28.66959302,155.97,155.91,50.0]
[1762448828754,8.07759302,155.92,155.91,50.0]
[1762448828945,8.07759302,155.92,155.91,57.78]
[1762448829953,8.07759302,155.92,155.91,7.78]
[1762448830324,20.592,155.89,155.87,53.34777408]
[1762448830630,20.592,155.93,155.88,0.68]
[1762448830831,5.14177207,155.97,155.91,50.0]
[1762448831024,0.49,156.02,155.94,50.0]
[1762448831235,5.14177207,155.97,155.95,7.78]
[1762448831432,5.14177207,155.97,155.96,50.0]
[1762448832532,5.14177207,155.97,155.95,7.78]
[1762448832731,25.73377207,155.96,155.95,7.78]
[1762448834258,20.592,155.94,155.86,50.0]
[1762448834465,20.592,155.94,155.88,7.78]
[1762448834760,0.49,155.93,155.88,7.78]
[1762448834935,20.592,155.92,155.88,7.78]
[1762448835261,9.78882769,155.91,155.81,3.35018665]
[1762448835436,9.78882769,155.91,155.82,7.78]
[1762448835437,20.592,155.88,155.82,7.78]
[1762448835636,5.14177207,155.83,155.82,7.78]
[1762448836258,20.592,155.8,155.79,0.2]
[1762448836559,25.73377207,155.8,155.79,0.2]
[1762448836877,31.36554414,155.8,155.79,0.2]
[1762448837182,5.14177207,155.8,155.79,0.2]
[1762448838445,20.592,155.85,155.79,0.88]
[1762448838647,5.14177207,155.8,155.79,0.2]
[1762448839449,25.73377207,155.8,155.79,0.2]
[1762448839646,30.87554414,155.8,155.79,0.2]
[1762448840047,30.87554414,155.8,155.73,0.2]
[1762448840048,21.082,155.79,155.73,0.2]
[1762448840366,5.14177207,155.74,155.73,0.2]
[1762448840779,5.14177207,155.74,155.73,57.30137032]
[1762448841076,20.592,155.76,155.73,7.30131279]
[1762448841237,5.14177207,155.74,155.73,50.88]
[1762448841737,5.14177207,155.74,155.73,57.30137032]
[1762448841952,21.082,155.85,155.73,57.30137032]
[1762448842256,5.14177207,155.76,155.75,50.0]
[1762448842446,5.14177207,155.77,155.75,50.0]
[1762448842652,5.14177207,155.76,155.75,50.0]
[1762448843164,5.14177207,155.76,155.75,50.68]
[1762448843537,5.14177207,155.76,155.75,57.10054574]
[1762448843737,20.592,155.83,155.75,57.10054574]
[1762448843995,5.14177207,155.76,155.75,57.10054574]
[1762448844338,5.14177207,155.76,155.75,50.68]
[1762448844742,5.14177207,155.76,155.75,50.0]
[1762448844975,20.592,155.74,155.73,0.2]
[1762448845175,5.14177207,155.74,155.73,0.2]
[1762448845541,25.73377207,155.73,155.72,7.98]
[1762448845744,5.14177207,155.73,155.71,0.2]
[1762448845948,20.592,155.69,155.66,7.78]
[1762448846269,5.14177207,155.67,155.66,7.78]
[1762448846473,5.14177207,155.67,155.61,59.78056471]
[1762448846474,25.73377207,155.67,155.61,59.78056471]
[1762448846652,5.14177207,155.63,155.61,57.10618003]
[1762448846851,5.14177207,155.65,155.63,50.0]
[1762448847175,5.14177207,155.66,155.63,100.0]
[1762448847346,5.14177207,155.67,155.65,56.42467073]
[1762448847681,20.592,155.69,155.65,50.0]
[1762448847844,5.14177207,155.67,155.66,0.68]
[1762448848184,20.592,155.66,155.6,4.03488669]
[1762448848475,20.592,155.67,155.61,58.46]
[1762448848676,20.592,155.67,155.61,8.46]
[1762448849443,5.14177207,155.62,155.61,14.88615643]
[1762448849669,5.14177207,155.63,155.61,64.88615643]
[1762448849975,5.14177207,155.62,155.61,7.78]
[1762448850178,5.14177207,155.62,155.61,14.20632221]
[1762448850359,5.14177207,155.63,155.61,14.20632221]
[1762448850555,20.592,155.65,155.61,7.78]
[1762448850860,5.14177207,155.63,155.62,0.68]
[1762448851548,5.14177207,155.63,155.62,7.10590926]
[1762448852372,20.592,155.65,155.62,7.10590926]
[1762448852556,5.14177207,155.7,155.63,0.68]
[1762448852746,5.14177207,155.68,155.63,50.68]
[1762448852947,5.14177207,155.68,155.65,50.0]
[1762448853144,5.14177207,155.66,155.63,50.0]
[1762448853480,5.14177207,155.7,155.63,50.0]
[1762448853481,5.14177207,155.64,155.63,50.0]
[1762448853678,5.14177207,155.65,155.63,50.0]
[1762448853887,5.14177207,155.65,155.63,7.10549636]
[1762448854186,5.14177207,155.66,155.64,0.68]
[1762448854682,5.14177207,155.7,155.61,7.78]
[1762448854683,5.14177207,155.65,155.62,0.68]
[1762448854866,5.14177207,155.64,155.63,50.0]
[1762448855297,20.592,155.67,155.63,50.68]
[1762448855466,5.14177207,155.64,155.63,57.10544116]
[1762448855664,5.14177207,155.64,155.63,56.42544116]
[1762448855876,20.592,155.67,155.63,57.10544116]
[1762448856085,20.592,155.69,155.64,0.68]
[1762448856282,5.14177207,155.66,155.64,0.68]
[1762448857081,5.14177207,155.65,155.64,0.68]
[1762448857458,20.592,155.69,155.64,7.10502766]
[1762448857675,5.14177207,155.65,155.64,7.10502766]
[1762448857863,5.14177207,155.66,155.64,7.10502766]
[1762448858062,5.14177207,155.69,155.65,50.67]
[1762448858266,5.14177207,155.69,155.66,7.78]
[1762448858574,5.14177207,155.69,155.66,8.45]
[1762448858780,102.9,155.73,155.66,7.78]
[1762448858983,5.14177207,155.69,155.67,0.67]
[1762448859159,5.14177207,155.68,155.66,7.78]
[1762448859357,5.14177207,155.67,155.63,57.09544761]
[1762448859578,5.14177207,155.64,155.63,0.67]
[1762448859782,5.14177207,155.64,155.63,7.09549636]
[1762448859979,5.14177207,155.64,155.62,7.78]
[1762448860184,5.14177207,155.63,155.62,7.78]
[1762448860373,20.592,155.61,155.6,0.2]
[1762448860561,5.14177207,155.61,155.6,0.2]
[1762448861182,25.73377207,155.61,155.6,0.2]
[1762448861571,0.49,155.69,155.6,0.87]
[1762448861780,25.73377207,155.63,155.61,7.78]
[1762448861981,20.592,155.63,155.61,8.45]
[1762448862183,5.14177207,155.67,155.64,50.0]
[1762448862388,5.23189907,155.73,155.66,50.0]
[1762448862690,5.14177207,155.68,155.64,50.0]
[1762448862863,5.14177207,155.65,155.64,50.0]
[1762448863064,5.14177207,155.65,155.63,0.67]
[1762448863577,5.14177207,155.64,155.61,7.78]
[1762448863778,5.14177207,155.64,155.61,14.87622962]
[1762448863972,5.14177207,155.64,155.62,0.67]
[1762448864179,5.14177207,155.63,155.61,14.87622962]
[1762448865100,5.14177207,155.62,155.61,7.78]
[1762448865871,26.22377207,155.62,155.61,7.78]
[1762448866101,25.73377207,155.62,155.6,0.2]
[1762448866279,5.14177207,155.61,155.6,0.2]
[1762448867370,5.14177207,155.61,155.6,6.62673521]
[1762448867573,20.592,155.62,155.6,0.87]
[1762448867788,25.73377207,155.62,155.6,7.29660617]
[1762448867993,5.14177207,155.61,155.6,7.29660617]
[1762448868170,5.14177207,155.61,155.6,0.2]
[1762448869273,11.5711553,155.61,155.6,0.1]
[1762448869496,20.592,155.58,155.53,0.87]
[1762448869777,5.14177207,155.54,155.53,0.87]
[1762448870277,5.14177207,155.55,155.53,0.87]
[1762448870888,5.14177207,155.55,155.53,7.29957337]
[1762448871374,5.14177207,155.54,155.53,0.2]
[1762448871575,5.14177207,155.55,155.53,0.87]
[1762448871780,5.14177207,155.54,155.53,0.2]
[1762448872696,25.73377207,155.54,155.53,0.2]
[1762448873297,9.78882769,155.53,155.48,0.1]
[1762448873498,5.14177207,155.49,155.48,0.1]
[1762448873873,5.14177207,155.52,155.48,0.77]
[1762448874193,20.592,155.53,155.49,50.0]
[1762448874393,5.14177207,155.53,155.49,50.0]
[1762448874594,5.14177207,155.53,155.5,0.67]
[1762448875097,5.14177207,155.52,155.49,50.0]
[1762448875297,5.14177207,155.51,155.49,50.67]
[1762448875595,5.14177207,155.51,155.49,0.67]
[1762448875899,20.592,155.54,155.48,6.53164092]
[1762448876099,5.14177207,155.5,155.48,6.53164092]
[1762448876305,5.14177207,155.51,155.48,6.53164092]
[1762448876611,5.14177207,155.49,155.48,0.1]
[1762448876794,20.592,155.52,155.48,0.1]
[1762448876992,5.14177207,155.49,155.48,0.1]
[1762448877715,5.14177207,155.5,155.48,0.1]
[1762448877895,5.14177207,155.49,155.48,0.1]
[1762448878694,25.73377207,155.49,155.48,0.1]
[1762448878900,26.12377207,155.49,155.48,0.1]
[1762448879086,25.73377207,155.49,155.48,0.1]
[1762448879491,5.14177207,155.49,155.48,0.1]
[1762448879697,5.53177207,155.49,155.48,0.1]
[1762448880212,15.32059976,155.49,155.48,0.1]
[1762448880393,20.592,155.46,155.42,0.67]
[1762448880583,20.592,155.46,155.43,50.0]
[1762448880786,5.14177207,155.47,155.44,0.67]
[1762448881007,20.592,155.49,155.42,0.67]
[1762448881392,5.14177207,155.48,155.43,50.0]
[1762448881586,20.592,155.51,155.44,6.43335048]
[1762448881791,20.592,155.51,155.44,12.24512255]
[1762448882018,5.14177207,155.52,155.46,55.14177207]
[1762448882319,5.14177207,155.51,155.47,8.47]
[1762448882485,5.14177207,155.49,155.47,7.8]
[1762448882685,5.14177207,155.48,155.42,50.67]
[1762448882891,20.592,155.49,155.42,50.67]
[1762448882892,5.14177207,155.45,155.42,58.47]
[1762448883104,5.14177207,155.45,155.43,0.67]
[1762448884115,5.14177207,155.44,155.42,7.8]
[1762448884324,20.592,155.46,155.42,7.8]
[1762448884525,20.592,155.43,155.41,0.2]
[1762448884888,5.14177207,155.42,155.41,0.2]
[1762448885195,20.592,155.43,155.41,0.2]
[1762448885391,5.14177207,155.42,155.41,0.2]
[1762448885587,20.592,155.43,155.41,0.2]
[1762448885820,5.33028686,155.52,155.42,5.14177207]
[1762448886031,4.2265571,155.51,155.48,5.14177207]
[1762448886221,5.33028686,155.55,155.49,62.94177207]
[1762448886528,4.22588875,155.54,155.49,57.8]
[1762448886829,4.22588875,155.53,155.52,5.14177207]
[1762448886989,0.39,155.59,155.5,50.67]
[1762448887185,0.39,155.59,155.51,0.67]
[1762448887186,5.14177207,155.53,155.51,0.67]
[1762448887389,5.14177207,155.54,155.51,0.67]
[1762448888402,5.14177207,155.53,155.51,0.67]
[1762448888706,20.592,155.55,155.49,7.8]
[1762448888904,20.592,155.55,155.5,50.67]
[1762448889093,25.73377207,155.54,155.5,50.67]
[1762448889288,5.14177207,155.52,155.49,7.8]
[1762448889524,20.592,155.54,155.49,7.8]
[1762448889525,5.14177207,155.51,155.49,7.8]
[1762448889694,5.14177207,155.51,155.49,8.47]
[1762448889899,5.14177207,155.52,155.49,7.8]
[1762448890234,25.73377207,155.54,155.5,0.67]
[1762448890415,20.592,155.54,155.5,0.67]
[1762448890626,20.592,155.54,155.5,5.81177207]
[1762448890803,20.592,155.54,155.51,0.67]
[1762448891320,20.592,155.54,155.51,50.67]
[1762448891526,20.592,155.54,155.49,57.8]
[1762448891717,5.14177207,155.53,155.5,0.67]
[1762448892032,5.14177207,155.52,155.49,8.47]
[1762448892195,5.14177207,155.51,155.5,0.67]
[1762448892402,8.11709691,155.52,155.5,0.67]
[1762448892733,20.592,155.5,155.49,7.8]
[1762448893028,8.11709691,155.51,155.49,0.67]
[1762448894713,8.11709691,155.5,155.48,7.8]
[1762448894935,8.11709691,155.49,155.48,7.8]
[1762448895628,28.70909691,155.49,155.48,7.8]
[1762448895843,20.592,155.46,155.41,0.2]
[1762448896003,8.11709691,155.42,155.41,0.2]
[1762448896507,28.70909691,155.42,155.41,0.2]
[1762448896915,0.39,155.5,155.41,15.42168927]
[1762448897121,20.592,155.46,155.42,50.67]
[1762448897424,8.11709691,155.45,155.42,50.67]
[1762448897635,8.11709691,155.45,155.42,50.0]
[1762448897803,8.11709691,155.45,155.43,0.67]
[1762448898621,8.11709691,155.45,155.42,50.0]
[1762448898825,8.11709691,155.45,155.43,0.67]
[1762448899006,8.11709691,155.45,155.42,57.10415239]
[1762448899208,8.11709691,155.44,155.42,50.67]
[1762448899613,20.592,155.46,155.42,0.67]
[1762448899827,8.11709691,155.44,155.42,0.67]
[1762448900106,20.592,155.45,155.42,0.67]
[1762448900107,20.592,155.45,155.42,7.10411206]
[1762448900320,8.11709691,155.45,155.42,7.10411206]
[1762448900512,8.11709691,155.45,155.43,0.67]
[1762448900745,20.592,155.5,155.43,50.67]
[1762448900906,9.78882769,155.53,155.45,50.0]
[1762448900907,5.18856941,155.51,155.45,50.0]
[1762448901107,8.11709691,155.5,155.46,7.8]
[1762448901323,8.11709691,155.49,155.46,7.8]
[1762448901647,8.11709691,155.47,155.46,7.8]
[1762448902543,20.982,155.53,155.46,7.8]
[1762448902544,20.982,155.51,155.46,7.8]
[1762448902755,8.11709691,155.47,155.46,7.8]
[1762448902939,8.11709691,155.47,155.42,8.52]
[1762448903122,8.11709691,155.44,155.42,7.8]
[1762448903448,20.592,155.5,155.43,58.83709691]
[1762448903622,8.11709691,155.48,155.43,50.72]
[1762448903832,8.11709691,155.47,155.44,0.72]
[1762448904126,8.11709691,155.48,155.44,7.15327488]
[1762448904331,20.592,155.48,155.42,7.8]
[1762448904549,8.11709691,155.45,155.42,14.95412772]
[1762448904750,8.11709691,155.45,155.43,0.72]
[1762448904919,8.11709691,155.46,155.43,0.72]
[1762448905351,8.11709691,155.47,155.43,0.72]
[1762448905640,8.11709691,155.46,155.44,50.0]
[1762448905824,8.11709691,155.47,155.45,6.43293663]
[1762448906021,8.11709691,155.47,155.45,0.72]
[1762448906351,20.592,155.48,155.45,0.72]
[1762448906352,8.11709691,155.46,155.45,0.72]
[1762448906718,8.11709691,155.47,155.45,0.72]
[1762448907619,28.70909691,155.48,155.45,0.72]
[1762448907820,20.592,155.48,155.45,7.152565]
[1762448908014,8.11709691,155.47,155.45,0.72]
[1762448908257,8.11709691,155.46,155.45,0.72]
[1762448908546,8.11709691,155.47,155.45,0.72]
[1762448908724,20.592,155.48,155.45,7.15287833]
[1762448909118,8.11709691,155.5,155.46,50.72]
[1762448909318,8.11709691,155.51,155.47,7.8]
[1762448909537,20.592,155.52,155.47,7.8]
[1762448909538,8.11709691,155.5,155.47,8.52]
[1762448909740,8.11709691,155.5,155.48,0.72]
[1762448909967,8.11709691,155.49,155.47,8.52]
[1762448910123,8.11709691,155.48,155.47,7.8]
[1762448910518,20.592,155.45,155.42,50.0]
[1762448910746,8.11709691,155.43,155.41,0.2]
[1762448910925,8.11709691,155.42,155.41,0.2]
[1762448911527,20.592,155.46,155.41,0.2]
[1762448911721,8.11709691,155.42,155.41,0.2]
[1762448912421,8.11709691,155.42,155.41,0.92]
[1762448912637,8.11709691,155.42,155.41,0.2]
[1762448914735,20.592,155.42,155.41,0.92]
[1762448915366,28.70909691,155.42,155.41,0.92]
[1762448915568,28.70909691,155.42,155.41,0.2]
[1762448915858,28.70909691,155.42,155.41,0.92]
[1762448916264,20.592,155.43,155.41,0.92]
[1762448916570,8.11709691,155.42,155.41,0.2]
[1762448917153,20.592,155.43,155.41,0.87]
[1762448917353,8.11709691,155.42,155.41,0.87]
[1762448917741,8.11709691,155.42,155.41,0.2]
[1762448918470,8.11709691,155.42,155.41,0.87]
[1762448919167,8.11709691,155.43,155.41,0.87]
[1762448919355,8.11709691,155.42,155.41,0.2]
[1762448922462,28.70909691,155.43,155.41,0.87]
[1762448922659,28.70909691,155.43,155.42,0.67]
[1762448922861,28.70909691,155.43,155.41,0.87]
[1762448923056,8.11709691,155.42,155.41,0.2]
[1762448926957,28.70909691,155.42,155.41,0.2]
[1762448928772,8.11709691,155.42,155.41,0.2]
[1762448928977,8.50709691,155.42,155.41,0.2]
[1762448930599,18.2959246,155.42,155.41,0.2]
[1762448932386,20.592,155.43,155.41,0.2]
[1762448932562,8.11709691,155.42,155.41,0.2]
[1762448933290,20.592,155.43,155.41,0.2]
[1762448933580,8.11709691,155.42,155.41,0.91]
[1762448933782,8.11709691,155.42,155.41,0.2]
[1762448933993,8.11709691,155.42,155.41,0.91]
[1762448934169,8.11709691,155.42,155.41,0.2]
[1762448934690,22.56982748,155.42,155.41,0.2]
[1762448935256,9.78882769,155.41,155.39,0.1]
[1762448935485,13.1959682,155.4,155.31,0.71]
[1762448935787,28.70909691,155.36,155.33,0.71]
[1762448936315,5.04587388,155.46,155.37,6.43624895]
[1762448936502,8.11709691,155.43,155.38,50.0]
[1762448936802,8.11709691,155.44,155.4,50.0]
[1762448936983,20.592,155.41,155.4,50.0]
[1762448937806,8.11709691,155.42,155.4,0.71]
[1762448938018,8.11709691,155.44,155.41,0.71]
[1762448938313,8.11709691,155.46,155.42,56.43417835]
[1762448938478,8.11709691,155.47,155.43,0.71]
[1762448938679,20.592,155.44,155.43,0.71]
[1762448939535,5.09478099,155.49,155.43,0.71]
[1762448939820,0.29,155.57,155.46,50.0]
[1762448940047,0.29,155.57,155.47,0.71]
[1762448940048,20.592,155.48,155.47,0.71]
[1762448940194,0.29,155.57,155.48,50.0]
[1762448940395,20.592,155.49,155.48,57.78]
[1762448940595,8.11709691,155.52,155.48,57.78]
[1762448940792,8.11709691,155.49,155.48,7.78]
[1762448940993,28.70909691,155.5,155.48,7.78]
[1762448941288,28.70909691,155.5,155.49,0.71]
[1762448941501,20.592,155.5,155.49,0.71]
[1762448941810,0.29,155.57,155.49,0.71]
[1762448942114,20.592,155.54,155.49,0.71]
[1762448942297,28.70909691,155.51,155.49,0.71]
[1762448942833,8.11709691,155.55,155.5,50.0]
[1762448942981,20.592,155.58,155.5,50.0]
[1762448943182,8.11709691,155.54,155.51,0.71]
[1762448943494,5.06546934,155.6,155.52,50.0]
[1762448943685,0.29,155.63,155.54,50.0]
[1762448943686,8.11709691,155.58,155.54,50.0]
[1762448943894,8.11709691,155.58,155.54,57.78]
[1762448944089,8.11709691,155.55,155.54,7.78]
[1762448944404,8.11709691,155.55,155.49,0.71]
[1762448944591,8.11709691,155.5,155.49,0.71]
[1762448945512,8.11709691,155.5,155.48,7.78]
[1762448945817,8.11709691,155.5,155.42,58.49]
[1762448945818,20.592,155.46,155.42,58.49]
[1762448946022,8.11709691,155.43,155.38,50.0]
[1762448946224,8.11709691,155.42,155.4,50.0]
[1762448946733,8.11709691,155.41,155.38,50.0]
[1762448947023,8.11709691,155.41,155.37,8.49]
[1762448947024,8.11709691,155.39,155.37,8.49]
[1762448947501,8.11709691,155.38,155.37,7.78]
[1762448948028,8.11709691,155.4,155.37,8.49]
[1762448948204,8.11709691,155.4,155.38,0.71]
[1762448948407,5.15298302,155.48,155.4,50.0]
[1762448948722,28.70909691,155.45,155.4,50.0]
[1762448948926,20.592,155.39,155.37,0.71]
[1762448949103,8.11709691,155.38,155.37,0.71]
[1762448949694,0.29,155.44,155.37,0.71]
[1762448950004,20.592,155.4,155.39,50.0]
[1762448950194,8.11709691,155.43,155.39,50.0]
[1762448950396,8.11709691,155.43,155.37,8.82709691]
[1762448950397,8.11709691,155.44,155.41,50.0]
[1762448950618,8.11709691,155.43,155.42,7.78]
[1762448951223,8.11709691,155.44,155.42,7.78]
[1762448951453,8.11709691,155.43,155.42,7.78]
[1762448951633,8.11709691,155.44,155.42,7.78]
[1762448952024,102.9,155.48,155.43,0.71]
[1762448952325,0.29,155.53,155.44,55.16735383]
[1762448952326,5.16735383,155.49,155.44,55.16735383]
[1762448952524,20.592,155.46,155.44,50.0]
[1762448952746,5.16735383,155.48,155.45,0.71]
[1762448952931,5.16735383,155.49,155.45,0.71]
[1762448953130,0.80349681,155.57,155.45,0.71]
[1762448953131,5.16735383,155.51,155.48,50.0]
[1762448953338,5.16735383,155.51,155.49,7.78]
[1762448953529,0.80344517,155.58,155.5,50.0]
[1762448953530,0.29,155.58,155.5,50.0]
[1762448953746,0.29,155.58,155.5,50.71]
[1762448953936,5.16735383,155.55,155.52,50.0]
[1762448954253,0.2,155.64,155.54,50.0]
[1762448954459,5.16735383,155.59,155.56,50.0]
[1762448954638,20.592,155.62,155.55,7.78]
[1762448954821,5.16735383,155.58,155.55,7.78]
[1762448955128,5.16735383,155.56,155.55,7.78]
[1762448955543,5.45735383,155.56,155.53,7.78]
[1762448955742,5.16735383,155.54,155.53,7.78]
[1762448955964,25.75935383,155.55,155.53,7.78]
[1762448956164,25.75935383,155.55,155.53,8.49]
[1762448956458,5.16735383,155.54,155.53,8.49]
[1762448956630,5.16735383,155.54,155.53,7.78]
[1762448957042,5.16735383,155.54,155.53,8.49]
[1762448957262,20.592,155.54,155.53,58.49]
[1762448958263,20.592,155.54,155.53,64.91962772]
[1762448958469,5.16735383,155.58,155.53,64.91962772]
[1762448958768,5.16735383,155.59,155.56,50.0]
[1762448958960,20.592,155.57,155.56,50.0]
[1762448959456,5.16735383,155.59,155.56,50.71]
[1762448959679,0.2,155.64,155.58,50.0]
[1762448959851,5.36735383,155.64,155.6,50.0]
[1762448960041,5.16735383,155.61,155.57,50.71]
[1762448960360,5.16735383,155.59,155.58,7.78]
[1762448960661,20.792,155.64,155.58,8.49]
[1762448960872,20.792,155.64,155.59,0.71]
[1762448960873,5.16735383,155.62,155.59,0.71]
[1762448961177,20.592,155.61,155.6,50.0]
[1762448961546,25.95935383,155.64,155.6,50.71]
[1762448961743,0.2,155.64,155.62,50.0]
[1762448961938,0.2,155.7,155.66,50.0]
[1762448962135,0.2,155.7,155.67,7.78]
[1762448962365,5.16735383,155.68,155.67,7.78]
[1762448962673,0.2,155.7,155.69,50.0]
[1762448963166,0.2,155.7,155.69,50.72]
[1762448963859,25.95935383,155.7,155.67,50.0]
[1762448964176,5.16735383,155.68,155.67,50.0]
[1762448964468,5.16735383,155.68,155.67,57.78]
[1762448965292,0.2,155.7,155.67,58.5]
[1762448965565,0.2,155.7,155.69,50.0]
[1762448965939,0.2,155.75,155.73,50.0]
[1762448966139,25.95935383,155.75,155.74,7.78]
[1762448966365,0.2,155.75,155.74,8.5]
[1762448966553,0.2,155.75,155.74,18.28882769]
[1762448966974,0.2,155.75,155.74,29.87713952]
[1762448967176,0.2,155.78,155.77,50.0]
[1762448967363,20.792,155.78,155.77,50.0]
[1762448967553,20.792,155.78,155.77,50.72]
[1762448967754,0.2,155.78,155.77,50.72]
[1762448968671,0.2,155.78,155.77,115.67618152]
[1762448968983,0.2,155.78,155.77,122.0959029]
[1762448969555,0.2,155.78,155.77,68.28882769]
[1762448969983,0.2,155.78,155.77,74.70854907]
[1762448970476,0.2,155.78,155.77,58.48]
[1762448970682,5.36735383,155.78,155.77,57.76]
[1762448970849,0.2,155.78,155.77,57.76]
[1762448971056,5.36735383,155.78,155.77,50.0]
[1762448971264,5.36735383,155.78,155.77,57.76]
[1762448971461,0.2,155.78,155.77,58.48]
[1762448972280,5.36735383,155.78,155.77,57.76]
[1762448972477,0.2,155.78,155.77,57.76]
[1762448972686,0.2,155.78,155.77,58.48]
[1762448974267,5.36735383,155.78,155.75,50.0]
[1762448974476,0.2,155.78,155.76,7.76]
[1762448974780,5.16735383,155.77,155.73,50.0]
[1762448974958,0.2,155.78,155.75,50.0]
[1762448975160,0.2,155.78,155.76,7.76]
[1762448975373,0.2,155.78,155.77,50.0]
[1762448975574,0.2,155.78,155.76,7.76]
[1762448975775,0.2,155.78,155.77,7.76]
[1762448977100,5.36735383,155.78,155.77,7.76]
[1762448978383,25.95935383,155.78,155.77,7.76]
[1762448978583,0.9,155.87,155.77,12.92735383]
[1762448978790,5.16735383,155.84,155.82,50.0]
[1762448978992,5.16735383,155.85,155.83,7.76]
[1762448979177,5.16735383,155.86,155.84,50.0]
[1762448979380,5.36735383,155.87,155.84,50.0]
[1762448979975,0.2,155.87,155.86,50.0]
[1762448980172,0.2,155.87,155.86,115.63618152]
[1762448980390,0.80102531,156.05,155.94,50.0]
[1762448980587,5.16735383,155.98,155.95,7.76]
[1762448980888,0.7,156.01,155.95,7.76]
[1762448981089,5.16735383,155.96,155.95,7.76]
[1762448981293,0.7,156.04,155.96,50.0]
[1762448981511,5.16735383,155.97,155.95,7.76]
[1762448981709,20.592,155.99,155.95,7.76]
[1762448981884,5.16735383,155.97,155.95,7.76]
[1762448982080,0.7,155.99,155.95,7.76]
[1762448982410,5.16735383,156.0,155.99,50.0]
[1762448982615,21.292,156.03,155.99,57.76]
[1762448982908,5.16735383,156.0,155.99,50.0]
[1762448983098,0.7,156.02,155.99,7.76]
[1762448983283,5.16735383,156.0,155.99,57.76]
[1762448984393,5.16735383,156.0,155.99,7.76]
[1762448984789,20.592,156.04,155.99,57.76]
[1762448985021,0.7,156.05,155.99,50.0]
[1762448985190,0.7,156.05,156.0,7.76]
[1762448985514,5.16735383,156.04,156.01,50.0]
[1762448985833,0.1,156.06,156.01,50.0]
[1762448986107,5.16735383,156.05,156.03,50.0]
[1762448986298,5.16735383,156.04,156.03,50.0]
[1762448987495,5.16735383,156.04,156.01,50.0]
[1762448987701,5.16735383,156.02,156.01,50.0]
[1762448988007,0.1,156.06,156.01,57.76]
[1762448988200,5.16735383,156.02,155.99,50.0]
[1762448988391,20.592,156.03,156.0,7.76]
[1762448988797,21.292,156.03,156.0,7.76]
[1762448988999,20.592,156.05,156.0,7.76]
[1762448989210,21.292,156.05,156.0,7.76]
[1762448989407,5.16735383,156.02,156.0,7.76]
[1762448989623,5.16735383,156.01,156.0,7.76]
[1762448991334,0.7,156.04,156.0,7.76]
[1762448991826,5.16735383,156.02,156.0,7.76]
[1762448992402,0.1,156.06,156.03,50.0]
[1762448993022,5.16735383,156.04,156.03,50.0]
[1762448993920,5.16735383,156.04,156.03,7.76]
[1762448995620,5.86735383,156.04,156.03,7.76]
[1762448995824,5.16735383,156.04,156.03,7.74]